{"text_format":"1","workbook":"xlsx","n_sheets":3,"sheets":["Main","Sheet1","Sheet3"],"not_rendered":{"charts":0,"images":0,"macros":1,"external_links":0,"defined_names":0,"comments":0,"pivot_tables":0},"unopened":[],"bounds":{"document_bytes":16777216,"sheet_cells":100000,"rows_first":2000,"rows_last":500,"rows_between":2000,"halvings":0,"cell_chars":16384,"cell_head_chars":4096},"cells_cut":0,"cells_raw":0,"read":"whole","date_system":"1900"}

{"sheet":"Main","index":0,"n_rows":21,"n_cols":2,"rows_kept":21,"cut":false,"hidden":false,"merged":[]}
[23,"Twenty Three"]
[345,"Three Hundred Fourty Five"]
[123456,"One Lac Twenty Three Thousand Four Hundred Fifty Six"]
[235,"Two Hundred Thirty Five"]
[2424,"Two Thousand Four Hundred Twenty Four"]
[456456,"Four Lac Fifty Six Thousand Four Hundred Fifty Six"]
[31311,"Thirty One Thousand Three Hundred Eleven"]
[235345,"Two Lac Thirty Five Thousand Three Hundred Fourty Five"]
[1234567,"Twelve Lacs Thirty Four Thousand Five Hundred Sixty Seven"]
[7654321,"Seventy Six Lacs Fifty Four Thousand Three Hundred Twenty One"]
[1212121,"Twelve Lacs Twelve Thousand One Hundred Twenty One"]
[1,"One"]
[0]
[67,"Sixty Seven"]
[765,"Seven Hundred Sixty Five"]
[65543,"Sixty Five Thousand Five Hundred Fourty Three"]
[5000000,"Fifty Lacs "]
[123,"One Hundred Twenty Three"]
[9999999,"Ninty Nine Lacs Ninty Nine Thousand Nine Hundred Ninty Nine"]
[432,"Four Hundred Thirty Two"]
[333,"Three Hundred Thirty Three"]

{"sheet":"Sheet1","index":1,"n_rows":9,"n_cols":6,"rows_kept":9,"cut":false,"hidden":false,"merged":[]}
[21900,{"$f":"A1*57","v":1248300},null,21900,{"$f":"D1*57","v":1248300}]
[13900,{"$f":"A2*57","v":792300},null,7200,{"$f":"D2*57","v":410400}]
[1100,62700,null,1100,62700]
[null,0,null,null,0]
[null,0,null,null,0]
[null,0,null,null,0]
[null,0,null,null,0]
[null,0,null,null,0]
[{"$f":"A1+A2+A3","v":36900},2103300,{"$f":"B9*2","v":4206600},{"$f":"D1+D2+D3","v":30200},1721400,{"$f":"E9*2","v":3442800}]

{"sheet":"Sheet3","index":2,"n_rows":0,"n_cols":0,"rows_kept":0,"cut":false,"hidden":false,"merged":[]}